[Event "Titled Tuesday Blitz August 17 2021"]
[White "Papasimakopoulos, Alexandros"]
[Black "Fier, Alexandr"]
[WhiteFideId "4244125"]
[BlackFideId "2107139"]
[WhiteElo "2352"]
[BlackElo "2569"]
[Result "0-1"]
[Round "10"]
[TimeControl "180+1"]
[Date "2021.08.17"]
[WhiteClock "0:00:07"]
[BlackClock "0:01:35"]

1. d4 {[%clk 0:03:00]}  Nf6 {[%clk 0:02:59]} 2. c4 {[%clk 0:02:59]}  c5 {[%clk 0:03:00]} 3. d5 {[%clk 0:02:59]}  e6 {[%clk 0:03:01]} 4. Nc3 {[%clk 0:02:59]}  exd5 {[%clk 0:03:01]} 5. cxd5 {[%clk 0:03:00]}  d6 {[%clk 0:03:02]} 6. Nf3 {[%clk 0:03:00]}  g6 {[%clk 0:03:03]} 7. Bf4 {[%clk 0:03:01]}  Bg7 {[%clk 0:03:04]} 8. Qa4+ {[%clk 0:03:01]}  Bd7 {[%clk 0:03:04]} 9. Qb3 {[%clk 0:03:02]}  Qc7 {[%clk 0:03:04]} 10. e4 {[%clk 0:03:01]}  O-O {[%clk 0:03:04]} 11. Be2 {[%clk 0:03:01]}  Bg4 {[%clk 0:03:01]} 12. O-O {[%clk 0:02:43]}  Bxf3 {[%clk 0:03:01]} 13. Bxf3 {[%clk 0:02:43]}  a6 {[%clk 0:03:01]} 14. e5 {[%clk 0:02:17]}  dxe5 {[%clk 0:03:02]} 15. d6 {[%clk 0:02:17]}  Qxd6 {[%clk 0:03:03]} 16. Rfd1 {[%clk 0:02:14]}  Qc7 {[%clk 0:03:00]} 17. Bg5 {[%clk 0:02:03]}  Nbd7 {[%clk 0:02:57]} 18. Qxb7 {[%clk 0:01:56]}  Ra7 {[%clk 0:02:42]} 19. Qxc7 {[%clk 0:01:51]}  Rxc7 {[%clk 0:02:43]} 20. Rd6 {[%clk 0:01:51]}  Rb8 {[%clk 0:02:32]} 21. Rad1 {[%clk 0:01:22]}  Rxb2 {[%clk 0:02:25]} 22. Nd5 {[%clk 0:01:22]}  Nxd5 {[%clk 0:02:24]} 23. Bxd5 {[%clk 0:01:23]}  Nf8 {[%clk 0:02:22]} 24. Bc4 {[%clk 0:00:57]}  a5 {[%clk 0:02:18]} 25. Rc1 {[%clk 0:00:46]}  Rb4 {[%clk 0:02:17]} 26. Bd2 {[%clk 0:00:44]}  Rb2 {[%clk 0:02:12]} 27. Bxa5 {[%clk 0:00:41]}  Rd7 {[%clk 0:02:10]} 28. Rb6 {[%clk 0:00:35]}  e4 {[%clk 0:02:06]} 29. Rxb2 {[%clk 0:00:34]}  Bxb2 {[%clk 0:02:06]} 30. Rb1 {[%clk 0:00:33]}  Bd4 {[%clk 0:02:06]} 31. a4 {[%clk 0:00:32]}  Ra7 {[%clk 0:02:05]} 32. Rb5 {[%clk 0:00:27]}  Kg7 {[%clk 0:02:06]} 33. Bb3 {[%clk 0:00:27]}  Nd7 {[%clk 0:02:04]} 34. Kf1 {[%clk 0:00:23]}  Ne5 {[%clk 0:02:05]} 35. Bd2 {[%clk 0:00:21]}  Nd3 {[%clk 0:02:05]} 36. a5 {[%clk 0:00:20]}  Nxf2 {[%clk 0:02:03]} 37. Bd5 {[%clk 0:00:20]}  e3 {[%clk 0:02:02]} 38. Be1 {[%clk 0:00:20]}  Nd3 {[%clk 0:02:02]} 39. Bb7 {[%clk 0:00:20]}  c4 {[%clk 0:01:55]} 40. a6 {[%clk 0:00:21]}  c3 {[%clk 0:01:55]} 41. Bxc3 {[%clk 0:00:21]}  Bxc3 {[%clk 0:01:54]} 42. Rb3 {[%clk 0:00:22]}  Nc5 {[%clk 0:01:54]} 43. Rxc3 {[%clk 0:00:23]}  Nxb7 {[%clk 0:01:54]} 44. axb7 {[%clk 0:00:23]}  Rxb7 {[%clk 0:01:54]} 45. Rxe3 {[%clk 0:00:24]}  Rb2 {[%clk 0:01:54]} 46. h3 {[%clk 0:00:24]}  h5 {[%clk 0:01:54]} 47. Kg1 {[%clk 0:00:25]}  g5 {[%clk 0:01:52]} 48. Rd3 {[%clk 0:00:23]}  Kg6 {[%clk 0:01:52]} 49. Kh2 {[%clk 0:00:23]}  f6 {[%clk 0:01:51]} 50. Ra3 {[%clk 0:00:23]}  Re2 {[%clk 0:01:50]} 51. Ra4 {[%clk 0:00:23]}  Kf5 {[%clk 0:01:51]} 52. Ra5+ {[%clk 0:00:23]}  Kf4 {[%clk 0:01:51]} 53. Ra4+ {[%clk 0:00:24]}  Re4 {[%clk 0:01:51]} 54. Ra3 {[%clk 0:00:24]}  Rd4 {[%clk 0:01:49]} 55. Rf3+ {[%clk 0:00:23]}  Ke5 {[%clk 0:01:50]} 56. Re3+ {[%clk 0:00:23]}  Re4 {[%clk 0:01:50]} 57. Ra3 {[%clk 0:00:24]}  f5 {[%clk 0:01:50]} 58. Ra5+ {[%clk 0:00:24]}  Kf6 {[%clk 0:01:50]} 59. Ra6+ {[%clk 0:00:24]}  Re6 {[%clk 0:01:50]} 60. Ra2 {[%clk 0:00:25]}  g4 {[%clk 0:01:50]} 61. hxg4 {[%clk 0:00:23]}  hxg4 {[%clk 0:01:51]} 62. g3 {[%clk 0:00:21]}  Ke5 {[%clk 0:01:47]} 63. Kg2 {[%clk 0:00:20]}  Rd6 {[%clk 0:01:47]} 64. Re2+ {[%clk 0:00:20]}  Kf6 {[%clk 0:01:47]} 65. Ra2 {[%clk 0:00:21]}  Rd4 {[%clk 0:01:47]} 66. Rf2 {[%clk 0:00:21]}  Ke5 {[%clk 0:01:48]} 67. Re2+ {[%clk 0:00:21]}  Kd5 {[%clk 0:01:48]} 68. Ra2 {[%clk 0:00:21]}  Ke4 {[%clk 0:01:48]} 69. Re2+ {[%clk 0:00:22]}  Kd5 {[%clk 0:01:48]} 70. Rf2 {[%clk 0:00:22]}  Ke6 {[%clk 0:01:47]} 71. Re2+ {[%clk 0:00:22]}  Re4 {[%clk 0:01:48]} 72. Ra2 {[%clk 0:00:22]}  Re3 {[%clk 0:01:45]} 73. Ra6+ {[%clk 0:00:22]}  Ke5 {[%clk 0:01:46]} 74. Ra5+ {[%clk 0:00:22]}  Ke4 {[%clk 0:01:44]} 75. Ra2 {[%clk 0:00:22]}  Rc3 {[%clk 0:01:41]} 76. Rf2 {[%clk 0:00:20]}  Rc5 {[%clk 0:01:39]} 77. Ra2 {[%clk 0:00:19]}  Kd3 {[%clk 0:01:39]} 78. Ra3+ {[%clk 0:00:17]}  Rc3 {[%clk 0:01:39]} 79. Ra5 {[%clk 0:00:17]}  Rc2+ {[%clk 0:01:39]} 80. Kg1 {[%clk 0:00:17]}  Ke4 {[%clk 0:01:40]} 81. Ra3 {[%clk 0:00:16]}  Rd2 {[%clk 0:01:40]} 82. Kf1 {[%clk 0:00:16]}  Rd3 {[%clk 0:01:40]} 83. Ra4+ {[%clk 0:00:14]}  Kf3 {[%clk 0:01:39]} 84. Rf4+ {[%clk 0:00:15]}  Kxg3 {[%clk 0:01:40]} 85. Rxf5 {[%clk 0:00:16]}  Rd1+ {[%clk 0:01:40]} 86. Ke2 {[%clk 0:00:16]}  Rg1 {[%clk 0:01:41]} 87. Rf8 {[%clk 0:00:15]}  Kg2 {[%clk 0:01:40]} 88. Ra8 {[%clk 0:00:12]}  g3 {[%clk 0:01:40]} 89. Ra2 {[%clk 0:00:11]}  Rb1 {[%clk 0:01:38]} 90. Ke3+ {[%clk 0:00:11]}  Kh3 {[%clk 0:01:35]} 91. Kf3 {[%clk 0:00:07]}  Rf1+ {[%clk 0:01:34]} 92. Ke2 {[%clk 0:00:07]}  Rf2+ {[%clk 0:01:35]} 0-1


[Site "https://www.chess.com"]

[Event "Titled Tuesday Blitz August 17 2021"]
[White "Paravyan, David"]
[Black "Quparadze, Giga"]
[WhiteFideId "4194985"]
[BlackFideId "13602250"]
[WhiteElo "2562"]
[BlackElo "2658"]
[Result "1-0"]
[Round "10"]
[TimeControl "180+1"]
[Date "2021.08.17"]
[WhiteClock "0:00:12"]
[BlackClock "0:00:45"]

1. e4 {[%clk 0:03:00]}  c5 {[%clk 0:02:59]} 2. Nf3 {[%clk 0:03:01]}  a6 {[%clk 0:02:59]} 3. c3 {[%clk 0:03:00]}  d5 {[%clk 0:02:58]} 4. exd5 {[%clk 0:03:00]}  Qxd5 {[%clk 0:02:59]} 5. d4 {[%clk 0:03:01]}  e6 {[%clk 0:02:59]} 6. Be2 {[%clk 0:03:01]}  Nf6 {[%clk 0:02:59]} 7. O-O {[%clk 0:03:01]}  Nc6 {[%clk 0:02:59]} 8. Be3 {[%clk 0:03:01]}  cxd4 {[%clk 0:02:58]} 9. Nxd4 {[%clk 0:03:02]}  Nxd4 {[%clk 0:02:57]} 10. Bxd4 {[%clk 0:03:02]}  Be7 {[%clk 0:02:55]} 11. Bf3 {[%clk 0:03:03]}  Qd7 {[%clk 0:02:51]} 12. Nd2 {[%clk 0:03:02]}  O-O {[%clk 0:02:50]} 13. Nc4 {[%clk 0:03:02]}  Qc7 {[%clk 0:02:45]} 14. Qe2 {[%clk 0:03:01]}  Bd7 {[%clk 0:02:38]} 15. Be5 {[%clk 0:02:58]}  Qd8 {[%clk 0:02:27]} 16. Bxb7 {[%clk 0:02:57]}  Ra7 {[%clk 0:02:25]} 17. Bf3 {[%clk 0:02:58]}  Bb5 {[%clk 0:02:22]} 18. a4 {[%clk 0:02:56]}  Bxc4 {[%clk 0:02:17]} 19. Qxc4 {[%clk 0:02:57]}  Qa5 {[%clk 0:02:16]} 20. Rfe1 {[%clk 0:02:46]}  Rd7 {[%clk 0:02:07]} 21. b4 {[%clk 0:02:41]}  Qb6 {[%clk 0:02:07]} 22. a5 {[%clk 0:02:38]}  Qa7 {[%clk 0:02:05]} 23. Bd4 {[%clk 0:02:39]}  Qb8 {[%clk 0:02:03]} 24. Qxa6 {[%clk 0:02:38]}  Nd5 {[%clk 0:02:02]} 25. Bxd5 {[%clk 0:01:52]}  Rxd5 {[%clk 0:02:03]} 26. Qd3 {[%clk 0:01:47]}  Bf6 {[%clk 0:01:58]} 27. Reb1 {[%clk 0:01:04]}  Rfd8 {[%clk 0:01:53]} 28. Qg3 {[%clk 0:00:51]}  e5 {[%clk 0:01:22]} 29. Bc5 {[%clk 0:00:39]}  Qb5 {[%clk 0:01:18]} 30. Qg4 {[%clk 0:00:32]}  h5 {[%clk 0:01:12]} 31. Qe4 {[%clk 0:00:28]}  Qc6 {[%clk 0:01:05]} 32. Re1 {[%clk 0:00:25]}  Qa6 {[%clk 0:00:55]} 33. c4 {[%clk 0:00:21]}  Rd2 {[%clk 0:00:55]} 34. b5 {[%clk 0:00:20]}  Qc8 {[%clk 0:00:54]} 35. Be3 {[%clk 0:00:20]}  R2d4 {[%clk 0:00:47]} 36. Bxd4 {[%clk 0:00:20]}  Rxd4 {[%clk 0:00:48]} 37. Qc6 {[%clk 0:00:20]}  Qg4 {[%clk 0:00:48]} 38. h3 {[%clk 0:00:20]}  Qf4 {[%clk 0:00:48]} 39. Qf3 {[%clk 0:00:13]}  Qd2 {[%clk 0:00:47]} 40. Qe2 {[%clk 0:00:11]}  Qb4 {[%clk 0:00:46]} 41. a6 {[%clk 0:00:11]}  Rd2 {[%clk 0:00:45]} 42. a7 {[%clk 0:00:11]}  Rxe2 {[%clk 0:00:45]} 43. a8=Q+ {[%clk 0:00:11]}  Kh7 {[%clk 0:00:45]} 44. Rxe2 {[%clk 0:00:11]}  e4 {[%clk 0:00:45]} 45. Qxe4+ {[%clk 0:00:11]}  g6 {[%clk 0:00:45]} 46. Rf1 {[%clk 0:00:12]} 1-0


[Site "https://www.chess.com"]

[Event "Titled Tuesday Blitz August 17 2021"]
[White "Perez Gormaz, Matias"]
[Black "Sychev, Klementy"]
[WhiteFideId "3406342"]
[BlackFideId "4114060"]
[WhiteElo "2352"]
[BlackElo "2615"]
[Result "0-1"]
[Round "10"]
[TimeControl "180+1"]
[Date "2021.08.17"]
[WhiteClock "0:00:03"]
[BlackClock "0:00:55"]

1. e4 {[%clk 0:03:00]}  d5 {[%clk 0:03:00]} 2. exd5 {[%clk 0:03:00]}  Qxd5 {[%clk 0:02:59]} 3. Nc3 {[%clk 0:03:00]}  Qa5 {[%clk 0:02:58]} 4. d4 {[%clk 0:03:01]}  Nf6 {[%clk 0:02:58]} 5. Bd2 {[%clk 0:03:01]}  c6 {[%clk 0:02:52]} 6. Nf3 {[%clk 0:02:58]}  Bf5 {[%clk 0:02:48]} 7. Ne5 {[%clk 0:02:51]}  Nbd7 {[%clk 0:02:45]} 8. f4 {[%clk 0:02:27]}  Qb6 {[%clk 0:02:27]} 9. Bc4 {[%clk 0:01:54]}  e6 {[%clk 0:02:23]} 10. Nxd7 {[%clk 0:01:23]}  Nxd7 {[%clk 0:02:20]} 11. Qe2 {[%clk 0:01:11]}  Qxd4 {[%clk 0:01:54]} 12. Be3 {[%clk 0:01:08]}  Qf6 {[%clk 0:01:47]} 13. O-O-O {[%clk 0:01:03]}  Nb6 {[%clk 0:01:34]} 14. Nb5 {[%clk 0:00:50]}  Qe7 {[%clk 0:01:10]} 15. Nd6+ {[%clk 0:00:07]}  Qxd6 {[%clk 0:01:10]} 16. Rxd6 {[%clk 0:00:08]}  Bxd6 {[%clk 0:01:10]} 17. Bb3 {[%clk 0:00:07]}  O-O-O {[%clk 0:01:08]} 18. a4 {[%clk 0:00:05]}  Nd5 {[%clk 0:01:06]} 19. g3 {[%clk 0:00:04]}  a6 {[%clk 0:01:04]} 20. Bf2 {[%clk 0:00:04]}  h5 {[%clk 0:01:03]} 21. Re1 {[%clk 0:00:04]}  h4 {[%clk 0:01:03]} 22. a5 {[%clk 0:00:04]}  hxg3 {[%clk 0:01:03]} 23. hxg3 {[%clk 0:00:05]}  Rh2 {[%clk 0:01:03]} 24. Qf3 {[%clk 0:00:06]}  Bb4 {[%clk 0:01:03]} 25. c3 {[%clk 0:00:05]}  Bxa5 {[%clk 0:01:04]} 26. Bc2 {[%clk 0:00:05]}  Bxc2 {[%clk 0:01:03]} 27. Kxc2 {[%clk 0:00:05]}  Nf6 {[%clk 0:01:01]} 28. Re2 {[%clk 0:00:05]}  Bc7 {[%clk 0:00:59]} 29. Bd4 {[%clk 0:00:05]}  Rh6 {[%clk 0:00:58]} 30. Be5 {[%clk 0:00:05]}  Nd5 {[%clk 0:00:58]} 31. Bxc7 {[%clk 0:00:05]}  Kxc7 {[%clk 0:00:57]} 32. Rd2 {[%clk 0:00:05]}  a5 {[%clk 0:00:57]} 33. Qf2 {[%clk 0:00:06]}  Rh1 {[%clk 0:00:56]} 34. Kb3 {[%clk 0:00:06]}  Ra1 {[%clk 0:00:55]} 35. Qf3 {[%clk 0:00:02]}  a4+ {[%clk 0:00:55]} 36. Kc2 {[%clk 0:00:03]}  a3 {[%clk 0:00:55]} 0-1


[Site "https://www.chess.com"]

[Event "Titled Tuesday Blitz August 17 2021"]
[White "Petrovskyi, Vadym"]
[Black "Dahanayake, Isara Banidu"]
[WhiteFideId "14165210"]
[BlackFideId "9932631"]
[WhiteElo "2334"]
[BlackElo "1394"]
[Result "1/2-1/2"]
[Round "10"]
[TimeControl "180+1"]
[Date "2021.08.17"]
[WhiteClock "0:00:33"]
[BlackClock "0:00:14"]

1. e4 {[%clk 0:03:00]}  c5 {[%clk 0:02:58]} 2. Nf3 {[%clk 0:02:59]}  d6 {[%clk 0:02:57]} 3. d4 {[%clk 0:03:00]}  cxd4 {[%clk 0:02:57]} 4. Nxd4 {[%clk 0:03:00]}  Nf6 {[%clk 0:02:57]} 5. Nc3 {[%clk 0:03:01]}  a6 {[%clk 0:02:56]} 6. Bg5 {[%clk 0:03:01]}  e6 {[%clk 0:02:55]} 7. f4 {[%clk 0:03:00]}  Be7 {[%clk 0:02:55]} 8. Qf3 {[%clk 0:03:00]}  Qc7 {[%clk 0:02:55]} 9. O-O-O {[%clk 0:02:58]}  O-O {[%clk 0:02:55]} 10. g4 {[%clk 0:02:58]}  b5 {[%clk 0:02:48]} 11. Bg2 {[%clk 0:02:58]}  Bb7 {[%clk 0:02:48]} 12. a3 {[%clk 0:02:57]}  Nbd7 {[%clk 0:02:45]} 13. Bxf6 {[%clk 0:02:51]}  Bxf6 {[%clk 0:02:35]} 14. g5 {[%clk 0:02:51]}  Bxd4 {[%clk 0:02:35]} 15. Rxd4 {[%clk 0:02:51]}  Nb6 {[%clk 0:02:28]} 16. Rhd1 {[%clk 0:02:46]}  Nc4 {[%clk 0:02:22]} 17. f5 {[%clk 0:02:46]}  exf5 {[%clk 0:02:08]} 18. Qxf5 {[%clk 0:02:29]}  Ne3 {[%clk 0:02:04]} 19. Qf2 {[%clk 0:02:29]}  Nxd1 {[%clk 0:02:04]} 20. Rxd1 {[%clk 0:02:30]}  Qe7 {[%clk 0:02:00]} 21. Qg3 {[%clk 0:02:26]}  Rac8 {[%clk 0:01:57]} 22. Rxd6 {[%clk 0:02:24]}  Rfd8 {[%clk 0:01:48]} 23. Rxd8+ {[%clk 0:02:06]}  Rxd8 {[%clk 0:01:48]} 24. h4 {[%clk 0:02:05]}  Qd7 {[%clk 0:01:40]} 25. Kb1 {[%clk 0:01:57]}  Qd4 {[%clk 0:01:21]} 26. h5 {[%clk 0:01:56]}  Qg1+ {[%clk 0:01:20]} 27. Ka2 {[%clk 0:01:55]}  Qd4 {[%clk 0:01:06]} 28. g6 {[%clk 0:01:54]}  fxg6 {[%clk 0:01:03]} 29. hxg6 {[%clk 0:01:55]}  hxg6 {[%clk 0:00:58]} 30. Qxg6 {[%clk 0:01:53]}  Qc4+ {[%clk 0:00:58]} 31. Kb1 {[%clk 0:01:50]}  Qf7 {[%clk 0:00:58]} 32. Qb6 {[%clk 0:01:49]}  Rd2 {[%clk 0:00:49]} 33. Bh3 {[%clk 0:01:46]}  Kh8 {[%clk 0:00:43]} 34. Bf5 {[%clk 0:01:24]}  Rh2 {[%clk 0:00:33]} 35. b3 {[%clk 0:01:22]}  Rh1+ {[%clk 0:00:32]} 36. Kb2 {[%clk 0:01:22]}  g6 {[%clk 0:00:30]} 37. Qxg6 {[%clk 0:00:45]}  Qxg6 {[%clk 0:00:29]} 38. Bxg6 {[%clk 0:00:46]}  Kg7 {[%clk 0:00:30]} 39. Bf5 {[%clk 0:00:45]}  Kf6 {[%clk 0:00:30]} 40. a4 {[%clk 0:00:41]}  b4 {[%clk 0:00:25]} 41. Na2 {[%clk 0:00:40]}  a5 {[%clk 0:00:24]} 42. c3 {[%clk 0:00:40]}  bxc3+ {[%clk 0:00:24]} 43. Kxc3 {[%clk 0:00:40]}  Ke5 {[%clk 0:00:24]} 44. b4 {[%clk 0:00:40]}  axb4+ {[%clk 0:00:24]} 45. Kxb4 {[%clk 0:00:40]}  Bxe4 {[%clk 0:00:23]} 46. Bxe4 {[%clk 0:00:41]}  Kxe4 {[%clk 0:00:24]} 47. Nc3+ {[%clk 0:00:42]}  Ke5 {[%clk 0:00:23]} 48. a5 {[%clk 0:00:43]}  Rh4+ {[%clk 0:00:23]} 49. Kb5 {[%clk 0:00:43]}  Rh3 {[%clk 0:00:22]} 50. Na4 {[%clk 0:00:41]}  Rh7 {[%clk 0:00:20]} 51. Kb6 {[%clk 0:00:37]}  Kd6 {[%clk 0:00:20]} 52. a6 {[%clk 0:00:37]}  Rg7 {[%clk 0:00:20]} 53. Nc3 {[%clk 0:00:37]}  Rg8 {[%clk 0:00:15]} 54. Ne4+ {[%clk 0:00:37]}  Ke5 {[%clk 0:00:15]} 55. Nc5 {[%clk 0:00:37]}  Kd6 {[%clk 0:00:15]} 56. Nb7+ {[%clk 0:00:35]}  Kd7 {[%clk 0:00:15]} 57. Ka7 {[%clk 0:00:34]}  Rc8 {[%clk 0:00:13]} 58. Kb6 {[%clk 0:00:33]}  Rc6+ {[%clk 0:00:14]} 59. Kb5 {[%clk 0:00:34]}  Kc7 {[%clk 0:00:14]} 60. Nc5 {[%clk 0:00:32]}  Rb6+ {[%clk 0:00:14]} 61. Kc4 {[%clk 0:00:32]}  Rc6 {[%clk 0:00:13]} 62. Kb5 {[%clk 0:00:33]}  Rb6+ {[%clk 0:00:13]} 63. Kc4 {[%clk 0:00:33]}  Rc6 {[%clk 0:00:13]} 64. a7 {[%clk 0:00:31]}  Rxc5+ {[%clk 0:00:13]} 65. Kxc5 {[%clk 0:00:32]}  Kb7 {[%clk 0:00:14]} 66. a8=Q+ {[%clk 0:00:33]}  Kxa8 {[%clk 0:00:14]} 1/2-1/2


[Site "https://www.chess.com"]

[Event "Titled Tuesday Blitz August 17 2021"]
[White "Plotnikov, Pavel"]
[Black "FGHSMN"]
[WhiteFideId "4170342"]
[WhiteElo "2298"]
[BlackElo "2586"]
[Result "0-1"]
[Round "10"]
[TimeControl "180+1"]
[Date "2021.08.17"]
[WhiteClock "0:00:01"]
[BlackClock "0:00:41"]

1. e4 {[%clk 0:03:00]}  c5 {[%clk 0:02:57]} 2. Nf3 {[%clk 0:02:59]}  e6 {[%clk 0:02:57]} 3. b3 {[%clk 0:02:59]}  b6 {[%clk 0:02:56]} 4. d4 {[%clk 0:02:57]}  cxd4 {[%clk 0:02:56]} 5. Nxd4 {[%clk 0:02:58]}  Bb7 {[%clk 0:02:56]} 6. Bf4 {[%clk 0:02:57]}  Bxe4 {[%clk 0:02:51]} 7. Nb5 {[%clk 0:02:57]}  Na6 {[%clk 0:02:48]} 8. Bd6 {[%clk 0:02:34]}  Nf6 {[%clk 0:02:39]} 9. N1c3 {[%clk 0:02:09]}  Bc6 {[%clk 0:02:30]} 10. Bxf8 {[%clk 0:01:51]}  Kxf8 {[%clk 0:02:31]} 11. Nd6 {[%clk 0:01:42]}  Nc5 {[%clk 0:02:26]} 12. b4 {[%clk 0:01:20]}  Nce4 {[%clk 0:01:55]} 13. Ncxe4 {[%clk 0:01:13]}  Nxe4 {[%clk 0:01:56]} 14. b5 {[%clk 0:01:12]}  Bd5 {[%clk 0:01:53]} 15. c4 {[%clk 0:00:54]}  Nxd6 {[%clk 0:01:47]} 16. cxd5 {[%clk 0:00:53]}  Qf6 {[%clk 0:01:41]} 17. Be2 {[%clk 0:00:46]}  Qc3+ {[%clk 0:01:40]} 18. Kf1 {[%clk 0:00:44]}  Ke7 {[%clk 0:01:20]} 19. g3 {[%clk 0:00:37]}  Rac8 {[%clk 0:01:03]} 20. Kg2 {[%clk 0:00:31]}  Qc2 {[%clk 0:01:01]} 21. Qe1 {[%clk 0:00:24]}  Qe4+ {[%clk 0:00:59]} 22. Bf3 {[%clk 0:00:19]}  Qxe1 {[%clk 0:00:58]} 23. Rhxe1 {[%clk 0:00:19]}  Nxb5 {[%clk 0:00:58]} 24. Rad1 {[%clk 0:00:14]}  Rc5 {[%clk 0:00:53]} 25. Rd3 {[%clk 0:00:13]}  Rhc8 {[%clk 0:00:50]} 26. Red1 {[%clk 0:00:13]}  Nc3 {[%clk 0:00:42]} 27. R1d2 {[%clk 0:00:06]}  Nxd5 {[%clk 0:00:41]} 28. Bxd5 {[%clk 0:00:05]}  Rxd5 {[%clk 0:00:41]} 29. Rxd5 {[%clk 0:00:03]}  exd5 {[%clk 0:00:42]} 30. Rxd5 {[%clk 0:00:02]}  Rc2 {[%clk 0:00:42]} 31. Re5+ {[%clk 0:00:01]}  Kd6 {[%clk 0:00:41]} 32. Rh5 {[%clk 0:00:01]}  h6 {[%clk 0:00:41]} 0-1


[Site "https://www.chess.com"]

[Event "Titled Tuesday Blitz August 17 2021"]
[White "Richter, Nils"]
[Black "Sengupta, Deep"]
[WhiteFideId "12990809"]
[BlackFideId "5008352"]
[WhiteElo "2289"]
[BlackElo "2347"]
[Result "0-1"]
[Round "10"]
[TimeControl "180+1"]
[Date "2021.08.17"]
[WhiteClock "0:00:24"]
[BlackClock "0:01:02"]

1. e4 {[%clk 0:03:00]}  c5 {[%clk 0:02:58]} 2. Nf3 {[%clk 0:03:00]}  d6 {[%clk 0:02:58]} 3. d4 {[%clk 0:03:00]}  cxd4 {[%clk 0:02:59]} 4. Nxd4 {[%clk 0:03:01]}  Nf6 {[%clk 0:02:59]} 5. Nc3 {[%clk 0:03:01]}  a6 {[%clk 0:03:00]} 6. Be3 {[%clk 0:03:02]}  e5 {[%clk 0:03:00]} 7. Nb3 {[%clk 0:03:02]}  Be7 {[%clk 0:02:56]} 8. f3 {[%clk 0:03:02]}  h5 {[%clk 0:02:56]} 9. Nd5 {[%clk 0:03:01]}  Nxd5 {[%clk 0:02:55]} 10. exd5 {[%clk 0:03:00]}  Bf5 {[%clk 0:02:53]} 11. Bd3 {[%clk 0:03:01]}  Bxd3 {[%clk 0:02:53]} 12. Qxd3 {[%clk 0:03:01]}  Nd7 {[%clk 0:02:53]} 13. O-O {[%clk 0:03:00]}  Rc8 {[%clk 0:02:43]} 14. c4 {[%clk 0:02:59]}  O-O {[%clk 0:02:40]} 15. Rac1 {[%clk 0:02:59]}  f5 {[%clk 0:02:39]} 16. Kh1 {[%clk 0:02:56]}  Bg5 {[%clk 0:02:34]} 17. Nd2 {[%clk 0:02:41]}  Nc5 {[%clk 0:02:29]} 18. Bxc5 {[%clk 0:02:40]}  Rxc5 {[%clk 0:02:28]} 19. b4 {[%clk 0:02:40]}  Rc7 {[%clk 0:02:27]} 20. c5 {[%clk 0:02:41]}  g6 {[%clk 0:02:14]} 21. Rc2 {[%clk 0:02:27]}  Re8 {[%clk 0:02:08]} 22. c6 {[%clk 0:02:11]}  bxc6 {[%clk 0:02:05]} 23. Rxc6 {[%clk 0:02:08]}  Rxc6 {[%clk 0:02:05]} 24. dxc6 {[%clk 0:02:09]}  d5 {[%clk 0:02:04]} 25. Nb3 {[%clk 0:02:04]}  Qd6 {[%clk 0:02:02]} 26. Qxa6 {[%clk 0:01:52]}  Re7 {[%clk 0:01:56]} 27. Qc8+ {[%clk 0:01:47]}  Kg7 {[%clk 0:01:54]} 28. Nc5 {[%clk 0:01:46]}  Be3 {[%clk 0:01:46]} 29. Nd7 {[%clk 0:01:43]}  Rf7 {[%clk 0:01:35]} 30. Qe8 {[%clk 0:01:35]}  Bd4 {[%clk 0:01:21]} 31. b5 {[%clk 0:01:22]}  e4 {[%clk 0:01:19]} 32. b6 {[%clk 0:01:18]}  Qxc6 {[%clk 0:01:13]} 33. Rb1 {[%clk 0:00:39]}  Qxd7 {[%clk 0:01:10]} 34. Qxd7 {[%clk 0:00:33]}  Rxd7 {[%clk 0:01:10]} 35. b7 {[%clk 0:00:34]}  Be5 {[%clk 0:01:10]} 36. b8=Q {[%clk 0:00:26]}  Bxb8 {[%clk 0:01:10]} 37. Rxb8 {[%clk 0:00:26]}  d4 {[%clk 0:01:11]} 38. Kg1 {[%clk 0:00:25]}  d3 {[%clk 0:01:11]} 39. Rb1 {[%clk 0:00:25]}  e3 {[%clk 0:01:11]} 40. Kf1 {[%clk 0:00:24]}  f4 {[%clk 0:01:11]} 41. Ke1 {[%clk 0:00:23]}  Rc7 {[%clk 0:01:08]} 42. a4 {[%clk 0:00:23]}  Rc2 {[%clk 0:01:06]} 43. Ra1 {[%clk 0:00:22]}  Rxg2 {[%clk 0:01:05]} 44. Kf1 {[%clk 0:00:23]}  Rxh2 {[%clk 0:01:02]} 45. Ke1 {[%clk 0:00:24]}  Rh1# {[%clk 0:01:02]} 0-1


[Site "https://www.chess.com"]

[Event "Titled Tuesday Blitz August 17 2021"]
[White "Ronka, Erik"]
[Black "Zhuravleva, Olga"]
[WhiteFideId "505080"]
[BlackFideId "4145933"]
[WhiteElo "2264"]
[BlackElo "2119"]
[Result "1-0"]
[Round "10"]
[TimeControl "180+1"]
[Date "2021.08.17"]
[WhiteClock "0:00:26"]
[BlackClock "0:00:09"]

1. d4 {[%clk 0:03:00]}  g6 {[%clk 0:00:58]} 2. e4 {[%clk 0:02:59]}  Bg7 {[%clk 0:00:58]} 3. Nf3 {[%clk 0:02:59]}  d6 {[%clk 0:00:59]} 4. Bc4 {[%clk 0:02:59]}  Nc6 {[%clk 0:00:59]} 5. c3 {[%clk 0:02:56]}  e5 {[%clk 0:00:59]} 6. h3 {[%clk 0:02:35]}  h6 {[%clk 0:00:51]} 7. O-O {[%clk 0:02:35]}  Nge7 {[%clk 0:00:48]} 8. Be3 {[%clk 0:02:31]}  O-O {[%clk 0:00:48]} 9. Qe2 {[%clk 0:02:31]}  Kh8 {[%clk 0:00:46]} 10. Qd2 {[%clk 0:02:28]}  Kh7 {[%clk 0:00:45]} 11. dxe5 {[%clk 0:02:03]}  Nxe5 {[%clk 0:00:44]} 12. Nxe5 {[%clk 0:02:03]}  dxe5 {[%clk 0:00:44]} 13. Na3 {[%clk 0:02:00]}  c6 {[%clk 0:00:42]} 14. Rad1 {[%clk 0:01:58]}  Qc7 {[%clk 0:00:41]} 15. Qd6 {[%clk 0:01:47]}  Qxd6 {[%clk 0:00:36]} 16. Rxd6 {[%clk 0:01:48]}  f5 {[%clk 0:00:36]} 17. f3 {[%clk 0:01:36]}  Ng8 {[%clk 0:00:24]} 18. exf5 {[%clk 0:01:33]}  gxf5 {[%clk 0:00:22]} 19. f4 {[%clk 0:01:30]}  e4 {[%clk 0:00:20]} 20. Nc2 {[%clk 0:01:28]}  Nf6 {[%clk 0:00:20]} 21. Nd4 {[%clk 0:01:24]}  Ne8 {[%clk 0:00:17]} 22. Rd8 {[%clk 0:01:23]}  Nf6 {[%clk 0:00:17]} 23. Rxf8 {[%clk 0:01:16]}  Bxf8 {[%clk 0:00:18]} 24. Rd1 {[%clk 0:01:16]}  b5 {[%clk 0:00:17]} 25. Be6 {[%clk 0:01:14]}  Bb7 {[%clk 0:00:18]} 26. Bxf5+ {[%clk 0:01:14]}  Kg7 {[%clk 0:00:18]} 27. Ne6+ {[%clk 0:01:11]}  Kf7 {[%clk 0:00:17]} 28. Nc5 {[%clk 0:01:04]}  Rb8 {[%clk 0:00:15]} 29. Nxe4 {[%clk 0:00:50]}  Nd5 {[%clk 0:00:15]} 30. Bc1 {[%clk 0:00:45]}  Re8 {[%clk 0:00:15]} 31. g4 {[%clk 0:00:41]}  Bc8 {[%clk 0:00:13]} 32. Bxc8 {[%clk 0:00:35]}  Rxe4 {[%clk 0:00:14]} 33. Bd7 {[%clk 0:00:31]}  Bc5+ {[%clk 0:00:13]} 34. Kf1 {[%clk 0:00:28]}  Be3 {[%clk 0:00:11]} 35. Bxc6 {[%clk 0:00:27]}  Bxf4 {[%clk 0:00:09]} 36. Bxd5+ {[%clk 0:00:26]}  Kf6 {[%clk 0:00:09]} 37. Bxe4 {[%clk 0:00:26]} 1-0


[Site "https://www.chess.com"]